bitfinex/quotes_SOLUSD_20240809
["timestamp","ask_amount","ask_price","bid_price","bid_amount"]
[1723163984852,40.03,162.67,162.55,20.0]
[1723163985061,6.1506,162.59,162.53,22.3466]
[1723163985365,6.1483,162.65,162.53,37.7276]
[1723163985566,20.0,162.66,162.55,6.1516]
[1723163985774,20.0,162.66,162.53,37.7276]
[1723163985775,6.1489,162.63,162.56,6.1515]
[1723163985982,20.0,162.62,162.56,6.1515]
[1723163986189,20.0,162.62,162.56,15.3782]
[1723163986601,26.1486,162.64,162.56,21.5294]
[1723163986781,26.1486,162.64,162.57,6.1511]
[1723163986982,20.0,162.64,162.56,15.3782]
[1723163987294,45.0,162.63,162.53,22.3466]
[1723163987459,6.1511,162.58,162.53,15.8181]
[1723163987655,45.0,162.63,162.53,15.8181]
[1723163987656,6.1504,162.59,162.53,15.8181]
[1723163988080,45.0,162.63,162.53,21.9707]
[1723163988385,20.0,162.62,162.53,21.9707]
[1723163988592,45.0,162.61,162.53,21.9707]
[1723163988895,21.53786328,162.6,162.51,21.5366]
[1723163989082,20.0,162.6,162.52,6.153]
[1723163989384,26.1502,162.6,162.53,6.1526]
[1723163989556,21.53789385,162.6,162.51,21.5364]
[1723163989763,26.1504,162.6,162.51,15.3832]
[1723163989975,20.0,162.6,162.51,21.5364]
[1723163990280,45.0,162.59,162.51,21.5364]
[1723163990585,51.1507,162.59,162.51,15.3832]
[1723163990771,51.1508,162.58,162.51,15.3832]
[1723163990960,6.1508,162.58,162.51,15.3832]
[1723163991188,6.1504,162.59,162.52,6.153]
[1723163991365,20.0,162.6,162.52,6.153]
[1723163991702,45.0,162.59,162.52,6.153]
[1723163992371,6.1505,162.59,162.52,6.153]
[1723163992988,1.53789308,162.58,162.49,6.1539]
[1723163993174,1.53789308,162.58,162.47,15.6856]
[1723163993486,40.03,162.56,162.44,6.1742]
[1723163993708,66.5385699,162.55,162.44,6.1742]
[1723163993932,1.5385477,162.54,162.44,6.1742]
[1723163994278,6.153,162.52,162.44,6.1742]
[1723163994490,65.0,162.55,162.5,6.1538]
[1723163995183,20.0,162.55,162.49,15.3852]
[1723163995486,6.1504,162.59,162.53,6.1523]
[1723163995780,7.96355895,162.61,162.48,15.3857]
[1723163995964,1.53820134,162.6,162.5,6.1537]
[1723163996290,6.1523,162.54,162.48,21.5402]
[1723163996790,6.1519,162.56,162.49,6.1541]
[1723163997084,21.53821505,162.55,162.48,15.3857]
[1723163997282,6.1523,162.54,162.48,15.3857]
[1723163997473,20.0,162.55,162.48,15.3857]
[1723163997780,20.0,162.55,162.52,6.153]
[1723163997959,20.0,162.57,162.52,6.153]
[1723163998367,1.53800438,162.6,162.52,6.153]
[1723163998984,6.1508,162.58,162.51,21.5366]
[1723163999170,20.0,162.57,162.51,21.5366]
[1723163999767,6.1504,162.59,162.51,15.3832]
[1723163999990,46.45708345,162.62,162.51,15.3832]
[1723164000173,1.53764005,162.64,162.52,36.1172]
[1723164000364,1.53764005,162.64,162.53,21.534]
[1723164000743,6.1508,162.59,162.53,15.3817]
[1723164000886,46.45620453,162.65,162.53,15.3817]
[1723164001192,46.45620453,162.65,162.52,16.1172]
[1723164001193,6.1509,162.58,162.52,16.1172]
[1723164001491,6.1503,162.6,162.53,6.1526]
[1723164001706,6.15,162.6,162.54,6.1522]
[1723164002063,6.1504,162.59,162.53,6.1527]
[1723164002281,5.6504,162.59,162.53,6.1527]
[1723164002484,6.15,162.6,162.53,6.1527]
[1723164002792,20.0,162.59,162.53,6.1527]
[1723164003169,20.0,162.59,162.52,31.4997]
[1723164003479,6.1485,162.64,162.58,6.1507]
[1723164003662,6.1489,162.63,162.55,15.3793]
[1723164003899,6.1493,162.62,162.56,6.1515]
[1723164004083,38.8693,162.62,162.55,21.5312]
[1723164004492,32.72,162.64,162.57,6.1511]
[1723164004729,20.0,162.63,162.55,15.3793]
[1723164004987,32.72,162.62,162.55,15.3793]
[1723164005296,6.1497,162.61,162.55,21.5312]
[1723164006090,38.8693,162.62,162.56,6.1515]
[1723164006274,32.72,162.62,162.57,6.1511]
[1723164006475,38.8693,162.62,162.56,6.1515]
[1723164007200,26.1498,162.61,162.55,21.5311]
[1723164007490,38.8687,162.64,162.58,15.3765]
[1723164007678,20.0,162.63,162.58,15.3765]
[1723164008390,20.0,162.63,162.58,21.5272]
[1723164008590,26.1489,162.63,162.58,15.3765]
[1723164009289,83.8693,162.62,162.56,6.1515]
[1723164009491,32.72,162.62,162.55,15.3798]
[1723164009670,20.0,162.63,162.55,15.3798]
[1723164010769,26.1491,162.63,162.55,15.3798]
[1723164011607,20.0,162.63,162.55,15.3798]
[1723164011901,32.72,162.64,162.58,15.3767]
[1723164012071,6.42526548,162.68,162.63,6.1485]
[1723164012272,32.72,162.72,162.6,32.72]
[1723164012478,38.8658,162.72,162.66,6.1477]
[1723164012995,6.1451,162.73,162.67,6.1473]
[1723164013299,0.843317,162.76,162.68,1.22932022]
[1723164013498,0.843317,162.76,162.69,1.22892164]
[1723164013698,0.843317,162.76,162.7,32.72]
[1723164013899,0.843317,162.76,162.71,1.22880666]
[1723164014286,0.843317,162.76,162.73,15.3625]
[1723164014579,0.843317,162.76,162.75,6.1443]
[1723164015394,6.1401,162.87,162.8,6.1422]
[1723164015598,6.1401,162.87,162.81,6.142]
[1723164015975,32.72,162.9,162.82,6.1417]
[1723164016188,6.1395,162.88,162.82,6.1417]
[1723164016674,6.139,162.9,162.83,6.1413]
[1723164016876,6.1399,162.87,162.8,1.22810717]
[1723164017077,1.53511049,162.86,162.8,6.1422]
[1723164017294,1.53511049,162.86,162.78,15.3576]
[1723164017295,32.72,162.86,162.79,6.1427]
[1723164017618,32.72,162.86,162.74,32.72]
[1723164017619,32.72,162.84,162.73,15.7938]
[1723164017800,6.1411,162.84,162.78,6.1431]
[1723164018105,32.72,162.84,162.77,15.3586]
[1723164018284,20.0,162.83,162.77,15.3586]
[1723164018486,26.1413,162.83,162.77,21.5022]
[1723164018696,32.72,162.87,162.77,15.3586]
[1723164018897,13.62319393,162.92,162.78,33.94835495]
[1723164019220,32.72,162.89,162.82,6.1417]
[1723164019501,32.72,162.89,162.83,6.1413]
[1723164019988,32.72,162.89,162.8,15.3558]
[1723164020299,38.8592,162.89,162.83,6.1412]
[1723164020504,32.72,162.89,162.84,6.1409]
[1723164021007,32.72,162.89,162.8,15.3558]
[1723164021221,20.0,162.88,162.84,6.1409]
[1723164021686,7.205617,162.92,162.84,6.1409]
[1723164021687,20.0,162.91,162.84,6.1409]
[1723164021884,32.72,162.9,162.84,6.1409]
[1723164022087,6.1392,162.89,162.83,21.4942]
[1723164022312,26.1396,162.88,162.83,15.3529]
[1723164022490,6.1403,162.86,162.8,6.1423]
[1723164023084,6.1398,162.87,162.81,6.1418]
[1723164023290,52.72,162.88,162.83,6.1413]
[1723164023721,39.925617,162.92,162.82,15.3539]
[1723164023907,20.0,162.91,162.83,1.22793757]
[1723164024098,26.1385,162.91,162.85,6.1402]
[1723164024499,20.0,162.91,162.85,6.1402]
[1723164024704,20.0,162.91,162.86,1.22792778]
[1723164024919,20.0,162.91,162.85,6.1402]
[1723164024920,26.1383,162.91,162.85,6.1402]
[1723164025129,0.843317,162.92,162.85,15.3512]
[1723164025429,0.843317,162.92,162.86,1.22761842]
[1723164025733,0.843317,162.92,162.91,6.1383]
[1723164026994,0.343317,162.92,162.91,6.1383]
[1723164029411,0.343317,162.92,162.91,7.36561799]
[1723164030109,0.343317,162.92,162.91,6.1383]
[1723164030691,0.343317,162.92,162.91,71.1383]
[1723164031099,0.343317,162.92,162.91,26.1383]
[1723164032000,6.1326,163.07,162.98,15.3389]
[1723164032203,6.1332,163.05,162.99,6.1353]
[1723164032499,32.72,163.04,162.94,15.3424]
[1723164032820,32.72,163.02,162.94,15.3424]
[1723164033111,6.1349,163.01,162.94,15.3424]
[1723164033319,6.1349,163.01,162.95,6.1368]
[1723164033507,37.07001728,163.08,162.95,6.1368]
[1723164033508,6.40971728,163.08,162.97,15.3399]
[1723164033714,6.40971728,163.08,163.04,6.133]
[1723164033910,6.0617,163.11,163.03,15.3344]
[1723164034089,6.974817,163.09,163.03,21.4682]
[1723164034296,0.843317,163.09,163.04,1.22640393]
[1723164034503,0.843317,163.09,163.04,7.35960393]
[1723164034721,0.843317,163.09,163.04,6.1332]
[1723164035090,0.843317,163.09,163.05,6.133]
[1723164035494,0.843317,163.09,163.08,6.1319]
[1723164035718,0.843317,163.09,162.97,16.1764]
[1723164035909,32.72,163.03,162.93,6.2307]
[1723164036109,32.72,163.03,162.96,6.1361]
[1723164036302,32.72,163.01,162.96,6.1361]
[1723164036503,32.72,162.99,162.94,15.3425]
[1723164036905,38.8547,163.01,162.94,21.4794]
[1723164037114,21.6203,163.05,162.98,6.1356]
[1723164037115,32.72,163.04,162.98,6.1356]
[1723164037516,38.8543,163.02,162.97,15.3396]
[1723164037695,6.1361,162.97,162.91,6.1383]
[1723164037899,32.72,162.96,162.91,6.1383]
[1723164038436,32.72,162.96,162.92,6.1379]
[1723164039323,32.72,162.96,162.93,6.1375]
[1723164039529,32.72,162.98,162.93,6.1375]
[1723164039725,32.72,162.98,162.92,15.3446]
[1723164040204,32.72,162.96,162.92,15.3446]
[1723164040405,38.8564,162.96,162.9,6.1387]
[1723164040604,32.72,162.94,162.88,15.3479]
[1723164040799,32.72,162.92,162.88,15.3479]
[1723164041016,32.72,162.92,162.81,16.361]
[1723164041017,32.72,162.9,162.85,6.1403]
[1723164041228,32.72,162.86,162.79,15.3563]
[1723164041523,32.72,162.84,162.81,6.142]
[1723164041710,81.6526,162.94,162.76,22.7409]
[1723164041711,32.72,162.86,162.83,6.1413]
[1723164041913,38.8612,162.84,162.77,6.1435]
[1723164042212,32.72,162.84,162.77,15.3588]
[1723164042412,31.9957,162.94,162.77,1.22825086]
[1723164042617,32.72,162.88,162.83,15.3526]
[1723164042809,32.72,162.88,162.83,21.4936]
[1723164043303,32.72,162.86,162.79,15.3566]
[1723164043502,32.72,162.86,162.81,6.1421]
[1723164043710,32.72,162.86,162.82,6.1416]
[1723164044023,32.72,162.86,162.79,15.3566]
[1723164044230,32.72,162.82,162.79,15.3566]
[1723164044438,32.72,162.8,162.75,15.3602]
[1723164044807,32.72,162.8,162.76,6.1436]
[1723164045129,32.72,162.8,162.77,6.1435]
[1723164045354,32.72,162.82,162.78,6.1432]
[1723164045535,32.72,162.79,162.71,38.311]
[1723164045849,32.72,162.81,162.74,15.3615]
[1723164046206,6.1428,162.8,162.74,15.3615]
[1723164046412,32.72,162.79,162.74,21.5062]
[1723164046707,32.72,162.75,162.7,15.3651]
[1723164047100,32.72,162.75,162.7,21.5113]
[1723164047302,32.72,162.75,162.67,22.2768]
[1723164047303,32.72,162.75,162.68,6.1467]
[1723164047541,32.72,162.73,162.68,6.1467]
[1723164047827,32.72,162.73,162.69,15.3661]
[1723164048003,32.72,162.75,162.69,21.5124]
[1723164048336,32.72,162.75,162.7,6.1461]
[1723164049729,32.72,162.79,162.72,15.3635]
[1723164049920,32.72,162.77,162.7,6.1462]
[1723164050305,32.72,162.77,162.71,6.1458]
[1723164050556,38.8636,162.77,162.71,15.3644]
[1723164050703,32.72,162.8,162.61,1.2288283]
[1723164050704,65.44,162.72,162.61,1.2288283]
[1723164050935,65.44,162.72,162.58,15.3767]
[1723164050936,32.72,162.63,162.58,15.3767]
[1723164051118,32.72,162.67,162.56,6.5894]
[1723164051303,20.0,162.71,162.58,63.4737]
[1723164051304,32.72,162.71,162.58,63.4737]
[1723164051508,6.0722,162.81,162.68,15.3672]
[1723164051713,6.1436,162.77,162.71,6.1458]
[1723164051911,6.0722,162.81,162.68,15.3672]
[1723164051912,6.1441,162.76,162.69,6.1464]
[1723164052109,38.7922,162.81,162.75,6.1442]
[1723164052338,18.03434411,162.84,162.74,15.3616]
[1723164052339,6.1417,162.82,162.74,15.3616]
[1723164052527,0.61443933,162.76,162.75,6.1443]
[1723164052840,0.61443933,162.76,162.74,15.3616]
[1723164053011,1.07,162.75,162.74,15.3616]
[1723164053429,1.07,162.75,162.74,21.5063]
[1723164054039,1.07,162.75,162.74,15.3616]
[1723164054537,1.07,162.75,162.74,21.5063]
[1723164056126,1.07,162.75,162.72,6.1454]
[1723164056467,1.07,162.75,162.7,21.5111]
[1723164056654,1.07,162.75,162.7,15.3652]
[1723164056821,39.9344,162.75,162.69,6.1466]
[1723164057015,33.79,162.75,162.66,31.5498]
[1723164057313,6.1451,162.73,162.67,6.1473]
[1723164057728,39.9346,162.75,162.68,6.147]
[1723164057927,33.79,162.75,162.69,15.3664]
[1723164058219,0.61443933,162.76,162.69,32.72]
[1723164058433,0.61443933,162.76,162.72,15.3636]
[1723164058937,0.61443933,162.76,162.72,16.59233172]
[1723164059641,0.61443933,162.76,162.75,6.1443]
[1723164060037,0.61443933,162.76,162.74,6.1447]
[1723164060331,0.61443933,162.76,162.75,6.1443]
[1723164060561,0.61443933,162.76,162.75,21.5052]
[1723164060716,0.61443933,162.76,162.71,64.0214]
[1723164060914,0.61443933,162.76,162.71,37.447]
[1723164061119,0.61443933,162.76,162.72,6.1455]
[1723164061347,6.75843933,162.76,162.71,15.364]
[1723164061526,6.1451,162.74,162.67,15.3678]
[1723164061847,6.1457,162.72,162.67,15.3678]
[1723164062021,32.72,162.71,162.66,6.1477]
[1723164062220,32.72,162.67,162.61,16.046]
[1723164062431,6.1479,162.66,162.59,21.9699]
[1723164062631,6.1479,162.66,162.59,15.3755]
[1723164062818,32.72,162.67,162.59,15.3755]
[1723164063022,38.8674,162.67,162.59,15.3755]
[1723164063322,32.72,162.67,162.61,6.1493]
[1723164063623,32.72,162.67,162.62,15.3731]
[1723164063844,32.72,162.71,162.62,15.3731]
[1723164064217,32.72,162.67,162.58,15.3762]
[1723164064422,38.8674,162.67,162.58,15.3762]
[1723164064644,6.1481,162.65,162.59,6.1504]
[1723164065166,38.8681,162.65,162.58,21.527]
[1723164065369,6.1486,162.64,162.58,21.527]
[1723164065520,38.8681,162.65,162.59,6.1502]
[1723164065721,38.8681,162.65,162.56,15.9421]
[1723164065722,6.1493,162.62,162.56,15.9421]
[1723164065923,32.72,162.63,162.56,15.9421]
[1723164066541,32.72,162.63,162.58,6.1507]
[1723164066863,32.72,162.63,162.57,15.3777]
[1723164067025,6.41034481,162.84,162.65,6.1481]
[1723164067026,8.40616862,162.71,162.65,6.1481]
[1723164067343,6.1484,162.65,162.56,1.22963233]
[1723164067563,32.72,162.66,162.61,6.1496]
[1723164067736,32.72,162.72,162.59,1.22968659]
[1723164067737,32.72,162.68,162.59,1.22968659]
[1723164067926,32.72,162.68,162.64,6.1484]
[1723164068240,32.72,162.7,162.58,1.22943193]
[1723164068459,38.8658,162.72,162.64,15.371]
[1723164068755,32.72,162.72,162.65,1.22919106]
[1723164068927,32.72,162.72,162.64,15.371]
[1723164069247,32.72,162.68,162.61,6.1493]
[1723164069464,6.1474,162.67,162.61,6.1493]
[1723164069639,6.1482,162.65,162.58,51.1506]
[1723164069823,38.8677,162.66,162.59,6.1502]
[1723164070154,32.72,162.68,162.57,33.9496138]
[1723164070459,32.72,162.68,162.62,15.3727]
[1723164070754,38.8685,162.64,162.58,15.3766]
[1723164070965,32.72,162.64,162.52,6.5599]
[1723164071193,32.72,162.62,162.52,6.5599]
[1723164071460,63.4477,162.72,162.51,33.563317]
[1723164071461,6.1216,162.79,162.69,15.3664]
[1723164071625,6.1216,162.79,162.69,54.233]
[1723164071823,1.53616156,162.83,162.73,6.1448]
[1723164071824,32.72,162.83,162.73,6.1448]
[1723164072029,32.72,162.83,162.72,15.3635]
[1723164072030,6.1437,162.77,162.71,32.72]
[1723164072222,32.72,162.79,162.68,16.4228]
[1723164072449,0.61443933,162.69,162.67,32.72]
[1723164072631,0.61443933,162.69,162.65,38.868]
[1723164073024,0.61443933,162.69,162.65,32.72]
[1723164073438,0.61443933,162.69,162.67,48.0877]
[1723164073724,0.61443933,162.69,162.68,6.147]
[1723164074680,0.61443933,162.69,162.68,7.37599074]
[1723164074854,0.61443933,162.69,162.68,6.147]
[1723164075235,0.61443933,162.69,162.68,52.3759041]
[1723164075429,0.61443933,162.69,162.68,26.147]
[1723164075646,0.61443933,162.69,162.63,15.8795]
[1723164075647,33.33443933,162.69,162.53,15.5541]
[1723164075828,32.72,162.54,162.53,6.1527]
[1723164076033,32.72,162.56,162.53,6.1527]
[1723164076226,32.72,162.58,162.54,15.3805]
[1723164076630,45.5242,162.64,162.57,6.1511]
[1723164076631,32.72,162.6,162.57,6.1511]
[1723164076825,12.8042,162.64,162.57,6.1511]
[1723164076826,32.72,162.62,162.57,6.1511]
[1723164077149,32.72,162.6,162.55,6.1517]
[1723164077360,32.72,162.64,162.57,15.3775]
[1723164077656,32.72,162.62,162.57,15.3775]
[1723164077839,6.1498,162.61,162.54,6.1522]
[1723164078108,40.0,162.62,162.53,15.3811]
[1723164078243,40.0,162.59,162.51,0.843317]
[1723164078445,1.53798184,162.58,162.51,0.843317]
[1723164078630,6.1513,162.57,162.51,0.843317]
[1723164078845,65.0,162.61,162.51,0.843317]
[1723164078846,20.0,162.61,162.52,15.3824]
[1723164079048,6.1501,162.6,162.54,6.1523]
[1723164079231,20.0,162.61,162.53,6.1524]
[1723164079436,20.0,162.61,162.52,15.3824]
[1723164080052,6.1516,162.56,162.51,0.843317]
[1723164080559,6.1521,162.55,162.51,0.843317]
[1723164080740,40.0,162.56,162.51,0.843317]
[1723164081230,40.0,162.56,162.51,16.226317]
[1723164081456,6.4484,162.58,162.53,6.1527]
[1723164081653,46.1504,162.59,162.53,6.1527]
[1723164081852,6.1508,162.58,162.51,16.226317]
[1723164082359,6.153,162.52,162.51,0.843317]
[1723164082854,51.153,162.52,162.51,0.843317]
[1723164083152,71.153,162.52,162.51,0.843317]
[1723164083953,6.1534,162.51,162.5,20.0]
[1723164084188,6.1584,162.38,162.35,0.843317]
[1723164084344,40.13,162.37,162.35,0.843317]
[1723164085046,46.2872,162.41,162.35,7.002817]
[1723164085274,40.13,162.41,162.35,0.843317]
[1723164086061,46.5398607,162.4,162.35,0.843317]
[1723164086357,40.13,162.41,162.35,0.843317]
[1723164086553,6.1591,162.36,162.35,0.843317]
[1723164088431,9.65664669,162.37,162.35,0.843317]
[1723164090044,6.1591,162.36,162.35,0.843317]
[1723164090531,51.1591,162.36,162.35,0.843317]
[1723164091362,71.1591,162.36,162.35,0.843317]
[1723164091737,15.81534669,162.37,162.35,0.843317]
[1723164092561,0.61443933,162.36,162.35,0.843317]
[1723164093536,6.77353933,162.36,162.35,0.843317]
[1723164095237,91.91353933,162.36,162.35,0.843317]
[1723164096755,105.75443933,162.36,162.24,22.0233]
[1723164096945,40.14,162.31,162.24,22.0233]
[1723164097146,6.1614,162.3,162.24,28.1869]
[1723164097575,6.1614,162.3,162.24,6.1636]
[1723164097773,32.86,162.27,162.24,6.1636]
[1723164098074,32.86,162.27,162.22,15.4103]
[1723164098279,32.86,162.25,162.19,31.671117]
[1723164098446,32.86,162.25,162.2,6.1652]
[1723164098647,32.86,162.25,162.21,15.4115]
[1723164099278,32.86,162.23,162.21,15.4115]
[1723164099451,32.86,162.23,162.19,0.843317]
[1723164101555,32.86,162.23,162.19,7.008917]
[1723164101882,32.86,162.23,162.19,0.843317]
[1723164103259,32.86,162.21,162.19,0.843317]
[1723164107267,7.70525349,162.23,162.19,0.843317]
[1723164107268,1.54126328,162.23,162.19,0.843317]
[1723164107495,32.86,162.25,162.19,0.843317]
[1723164107704,32.86,162.27,162.21,15.4118]
[1723164108370,39.0242,162.23,162.19,0.843317]
[1723164108695,25.49297502,162.29,162.19,0.843317]
[1723164108696,32.86,162.21,162.19,0.843317]
[1723164109198,39.0248,162.21,162.19,0.843317]
[1723164109666,32.86,162.21,162.19,0.843317]
[1723164110060,39.0248,162.21,162.19,0.843317]
[1723164110264,6.1652,162.2,162.19,0.843317]
[1723164112165,26.1652,162.2,162.19,0.843317]
[1723164112379,6.1667,162.16,162.15,130.68504238]
[1723164112585,39.0267,162.16,162.15,130.68504238]
[1723164112788,32.86,162.16,162.15,130.68504238]
[1723164113193,39.0259,162.18,162.15,130.68504238]
[1723164113504,6.1663,162.17,162.15,130.68504238]
[1723164113697,32.86,162.16,162.15,130.68504238]
[1723164113903,39.0267,162.16,162.15,130.68504238]
[1723164115893,39.0271,162.16,162.1,50.0]
[1723164116104,32.86,162.14,162.1,50.0]
[1723164116694,32.86,162.14,162.11,6.1686]
[1723164117392,32.86,162.18,162.11,15.4214]
[1723164117690,39.0267,162.16,162.11,15.4214]
[1723164118004,32.86,162.16,162.11,15.4214]
[1723164118475,33.47443933,162.2,162.14,6.1674]
[1723164118871,39.63993933,162.2,162.14,6.1674]
[1723164119077,0.61443933,162.2,162.14,15.4182]
[1723164119304,6.77963933,162.2,162.15,1.23314493]
[1723164119581,39.0256,162.19,162.14,15.4182]
[1723164119779,0.61443933,162.2,162.16,6.1664]
[1723164120087,0.61443933,162.2,162.16,6.1667]
[1723164120608,0.61443933,162.2,162.14,27.9594]
[1723164120982,0.61443933,162.2,162.15,6.1668]
[1723164121318,0.61443933,162.2,162.14,21.7923]
[1723164121830,0.61443933,162.2,162.13,1.23314752]
[1723164121990,0.61443933,162.2,162.17,21.5815]
[1723164122199,0.61443933,162.2,162.13,15.4188]
[1723164122493,39.0267,162.16,162.1,56.1686]
[1723164122692,32.86,162.16,162.11,6.1686]
[1723164123203,39.0267,162.16,162.1,56.169]
[1723164123514,32.86,162.18,162.12,15.4202]
[1723164123728,39.63973933,162.2,162.14,6.1671]
[1723164123910,39.63973933,162.2,162.11,32.07558592]
[1723164123911,6.1657,162.19,162.13,6.1678]
[1723164124099,6.166,162.18,162.12,6.1682]
[1723164124414,33.47443933,162.2,162.11,15.4212]
[1723164124415,6.1665,162.17,162.11,15.4212]
[1723164124961,39.0262,162.18,162.11,15.4212]
[1723164125134,39.63993933,162.2,162.11,16.65453146]
[1723164125286,6.1656,162.19,162.11,15.4212]
[1723164125704,33.47443933,162.2,162.1,50.0]
[1723164125705,32.86,162.18,162.1,50.0]
[1723164125883,32.86,162.16,162.1,50.0]
[1723164126101,32.86,162.14,162.1,50.0]
[1723164126308,32.86,162.16,162.1,56.169]
[1723164126607,6.166,162.18,162.13,6.1678]
[1723164126806,6.166,162.18,162.1,65.4221]
[1723164126990,39.026,162.18,162.12,6.1682]
[1723164127194,32.86,162.18,162.1,50.0]
[1723164127378,32.86,162.16,162.1,50.0]
[1723164127583,32.86,162.18,162.11,1.23342408]
[1723164128025,39.63963933,162.2,162.14,6.1674]
[1723164128527,39.63963933,162.2,162.15,1.23321817]
[1723164128712,33.47443933,162.2,162.12,15.4206]
[1723164129021,32.86,162.18,162.1,50.0]
[1723164129221,32.86,162.16,162.1,50.0]
[1723164130417,6.1678,162.14,162.1,50.0]
[1723164130918,6.1679,162.13,162.1,50.0]
[1723164131122,6.1686,162.11,162.1,50.0]
[1723164131518,6.1683,162.12,162.1,50.0]
[1723164131925,6.1686,162.11,162.1,50.0]
[1723164132526,6.78303933,162.11,162.1,50.0]
[1723164133227,6.1708,162.06,162.02,0.843317]
[1723164133427,32.86,162.07,162.02,0.843317]
[1723164133600,6.1713,162.04,162.02,0.843317]
[1723164133797,6.1708,162.06,162.02,0.843317]
[1723164134022,32.86,162.09,162.02,7.015317]
[1723164134199,6.1698,162.08,162.02,7.015317]
[1723164134409,6.1702,162.07,162.02,0.843317]
[1723164134941,6.1706,162.06,162.02,0.843317]
[1723164135387,6.1716,162.03,162.02,0.843317]
[1723164135512,6.1713,162.04,162.02,0.843317]
[1723164135728,6.1709,162.05,162.02,0.843317]
[1723164136031,32.86,162.07,162.02,0.843317]
[1723164136552,6.1709,162.05,162.02,0.843317]
[1723164136759,32.86,162.07,162.02,0.843317]
[1723164137624,20.0,162.09,162.02,0.843317]
[1723164137625,32.86,162.05,162.02,0.843317]
[1723164138723,6.1716,162.03,162.02,0.843317]
[1723164138955,39.0316,162.03,162.02,0.843317]
[1723164139126,59.0316,162.03,162.02,0.843317]
[1723164140038,59.0316,162.03,162.0,20.0]
[1723164140039,6.1724,162.01,162.0,20.0]
[1723164140257,6.1724,162.01,161.89,15.4417]
[1723164140258,101.152,162.01,161.89,15.4417]
[1723164140425,32.86,161.96,161.86,16.904217]
[1723164140627,6.175,161.95,161.88,15.4432]
[1723164140855,32.86,161.98,161.9,6.1766]
[1723164141062,6.1728,162.01,161.92,32.86]
[1723164141354,32.86,162.06,161.97,14.9346]
[1723164141533,6.74773933,162.11,161.97,14.9346]
[1723164141534,6.172,162.02,161.97,14.9346]
[1723164142160,0.61443933,162.11,162.0,15.4316]
[1723164142346,17.57918944,162.11,161.96,15.4353]
[1723164142550,17.57918944,162.11,161.95,22.5549]
[1723164142551,32.86,162.04,161.95,22.5549]
[1723164142723,1.54321031,162.03,161.95,22.5549]
[1723164142928,6.1728,162.0,161.95,22.5549]
[1723164143126,32.86,162.02,161.95,22.5549]
[1723164143331,6.1727,162.01,161.95,22.5549]
[1723164143544,32.86,162.02,161.95,22.5549]
[1723164143745,45.0,162.01,161.95,16.0609]
[1723164143953,39.0336,161.98,161.91,12.4867]
[1723164144149,39.0336,161.98,161.92,6.1758]
[1723164144361,32.86,161.96,161.91,6.3109]
[1723164144670,45.0,162.01,161.93,15.4383]
[1723164144671,77.86,162.01,161.93,15.4383]
[1723164144856,6.1728,162.0,161.94,6.1749]
[1723164145171,6.1733,161.99,161.93,21.6137]
[1723164145348,6.1736,161.98,161.93,15.4383]
[1723164145545,39.0339,161.97,161.91,12.4871]